Cogmind - Beta 15 @@@ ROGUE MODE // 2025.07.17 @ 17:01:57 Player: Err. String Expected Got Nil Result: Self-destructed Performance ------------- Evolutions (5) 2500 Regions Visited (16) 3200 Robots Destroyed (165) 825 Value Destroyed (4697) 4697 Prototype IDs (28) 560 Alien Tech Used (0) 0 Bonus (2846) 2846 TOTAL SCORE: 14628 Bonus ------- Follower Combat Kills 1910 Registered with UFD 300 Built Enhanced Grunts 300 Met R17 at Cetus 500 Friendly Fire -164 Cogmind --------- Core Integrity 1000/1000 Matter 220/300 Energy 350/350 System Corruption 0% Temperature Cool (0) Movement Hovering (53) Location -5/Factory Parts ------- > --- POWER (1) -------- Quantum Reactor > --- PROPULSION (5) --- Gravmag System Gravmag System Gravmag System Combat Airjet Combat Airjet > --- UTILITY (9) ------ Medium Storage Unit Enhanced Optical Array Advanced Signal Interpreter Advanced Terrain Scanner Advanced Terrain Scan Processor 0b10 Decoder Chip [Generic] Improved Hacking Suite Improved Hacking Suite Improved System Shield > --- WEAPON (2) ------- Advanced KE Penetrator Ripper > --- INVENTORY (10) --- Cooled Deuterium Engine Gravmag System Advanced Heat Sink Improved Hacking Suite Improved System Shield Coil Gun Hypervelocity Gauss Cannon Missile Launcher Axe Peak State ------------ > --- POWER ------------ Quantum Reactor > --- PROPULSION ------- Gravmag System Gravmag System Gravmag System Combat Airjet Combat Airjet > --- UTILITY ---------- Medium Storage Unit Enhanced Optical Array Advanced Signal Interpreter Advanced Terrain Scanner Advanced Terrain Scan Processor 0b10 Decoder Chip [Generic] Improved Hacking Suite Improved Hacking Suite Improved System Shield > --- WEAPON ----------- Advanced KE Penetrator Ripper > --- INVENTORY -------- Cooled Deuterium Engine Gravmag System Advanced Heat Sink Improved Hacking Suite Improved System Shield Coil Gun Hypervelocity Gauss Cannon Missile Launcher Axe [Rating: 87] Favorites ----------- Power Cooled Deuterium Engine Engine Cooled Deuterium Engine Reactor Quantum Reactor Propulsion Armored Treads Treads Armored Treads Wheel Compact Wheel Hover Unit Combat Airjet Utility High-capacity Storage Unit Device Improved Sensor Array Storage High-capacity Storage Unit Processor Signal Interpreter Hackware Hacking Suite Weapon Advanced Beam Rifle Energy Gun Advanced Beam Rifle Energy Cannon Phase Cannon Ballistic Gun Improved Assault Rifle Ballistic Cannon Light Cannon Launcher Missile Launcher Special Weapon Mining Laser Impact Weapon Shock Maul Slashing Weapon Makeshift Axe Piercing Weapon Spear Build | -11 -10 -10 -9 -9 -9 -8 -8 -8 -8 -8 -6 -6 -6 -6 -6 -5 ------- Run | Yrd Mat Min Mat Min Exi Min Mat Sto Rec Scr Fac Ext Cet Arc Hub Fac Slots Evolved 10 | . . . 2 . . . 2 . . . 4 . . . . 2 Power . | . . . . . . . . . . . . . . . . . Propulsion 3 | . . . . . . . 1 . . . 1 . . . . 1 Utility 7 | . . . 2 . . . 1 . . . 3 . . . . 1 Weapon . | . . . . . . . . . . . . . . . . . Parts Attached 102 | 7 11 . 13 1 1 . 18 9 . . 28 4 3 4 1 2 Power 8 | 1 1 . 2 . . . 2 . . . 1 . 1 . . . Engine 7 | 1 1 . 2 . . . 2 . . . 1 . . . . . Core . | . . . . . . . . . . . . . . . . . Reactor 1 | . . . . . . . . . . . . . 1 . . . Propulsion 33 | 2 4 . 2 . . . 7 5 . . 10 . . 2 . 1 Treads 17 | 2 2 . 2 . . . 6 5 . . . . . . . . Leg . | . . . . . . . . . . . . . . . . . Wheel 2 | . 2 . . . . . . . . . . . . . . . Hover 14 | . . . . . . . 1 . . . 10 . . 2 . 1 Flight . | . . . . . . . . . . . . . . . . . Utility 26 | 2 1 . 3 1 1 . 4 . . . 11 . 1 1 . 1 Device 7 | 1 . . 1 . . . 1 . . . 4 . . . . . Storage 5 | 1 1 . . 1 1 . . . . . 1 . . . . . Processor 8 | . . . 2 . . . 2 . . . 3 . 1 . . . Hackware 6 | . . . . . . . 1 . . . 3 . . 1 . 1 Protection . | . . . . . . . . . . . . . . . . . Artifact . | . . . . . . . . . . . . . . . . . Weapon 35 | 2 5 . 6 . . . 5 4 . . 6 4 1 1 1 . Energy Gun 9 | . 2 . 3 . . . 2 2 . . . . . . . . Energy Cannon 4 | . . . . . . . . . . . 4 . . . . . Ballistic Gun 11 | 2 . . 2 . . . 1 2 . . 2 1 . . 1 . Ballistic Cannon 1 | . 1 . . . . . . . . . . . . . . . Launcher 4 | . 1 . 1 . . . 1 . . . . 1 . . . . Special Weapon 1 | . 1 . . . . . . . . . . . . . . . Impact Weapon 1 | . . . . . . . . . . . . 1 . . . . Slashing Weapon 3 | . . . . . . . 1 . . . . . 1 1 . . Piercing Weapon 1 | . . . . . . . . . . . . 1 . . . . Special Melee Weapon . | . . . . . . . . . . . . . . . . . Unidentified Prototypes 9 | . . . 2 . . . 2 1 . . 2 1 . . 1 . Corrupted Parts 1 | . . . . . . . . . . . . . . . 1 . System Corruption 6 | . . . . . . . . . . . . . . . 6 . Parts Lost 15 | . 5 . . . . . 2 . . . 1 3 3 1 . . Power 1 | . . . . . . . . . . . . . 1 . . . Propulsion 5 | . 2 . . . . . 1 . . . . 1 1 . . . Utility 4 | . 1 . . . . . 1 . . . 1 . 1 . . . Weapon 5 | . 2 . . . . . . . . . . 2 . 1 . . Highest Loss Streak 3 | . 1 . . . . . 1 . . . 1 2 3 1 . . To Critical Strikes 1 | . . . . . . . . . . . . . 1 . . . Average Backups 14 | 1 10 14 14 15 15 16 18 19 20 19 10 9 8 9 10 8 Power 1 | . 1 1 2 2 2 2 1 1 1 1 . 1 . 1 1 1 Propulsion 3 | . . 1 3 2 2 2 3 6 7 6 2 1 . 1 2 1 Utility 5 | . 6 8 4 5 5 6 7 5 5 6 3 4 4 4 4 3 Weapon 4 | . 2 4 4 6 6 6 6 6 6 5 3 2 4 3 3 3 Tool/Special . | . . . . . . . . . . . . . . . . . Unused Backups 38 | . 3 . 6 2 . . 8 3 . 4 6 . . 2 . 4 Power 4 | . 1 . . . . . 3 . . . . . . . . . Propulsion 9 | . . . 2 . . . 2 1 . 1 2 . . . . 1 Utility 15 | . 2 . 2 1 . . 1 1 . . 3 . . 2 . 3 Weapon 9 | . . . 2 1 . . 2 1 . 2 1 . . . . . Tool/Special 1 | . . . . . . . . . . 1 . . . . . . Average Slot Usage (%) 98 | . 94 85 99 100 100 100 99 99 100 100 99 99 96 100 100 97 Engine 9 | . 14 14 11 11 11 11 8 8 9 9 5 6 4 . . . Treads 19 | . 23 28 21 22 22 22 26 27 27 27 . . . . . . Hover 5 | . . . . . . . . . . . 25 25 25 26 26 29 Device 9 | . 11 . 11 11 11 11 8 9 9 9 10 13 6 6 6 5 Storage 9 | . 14 14 11 11 11 11 9 9 9 9 6 6 6 6 6 5 Processor 17 | . . . 21 22 22 22 18 18 18 18 21 20 22 26 26 23 Hackware 6 | . . . . . . . 8 9 9 9 12 13 13 13 13 14 Energy Gun 7 | . 10 13 10 11 11 11 8 8 9 9 . . . . . . Ballistic Gun 7 | . 11 . 7 11 11 11 8 9 9 9 3 2 4 . . 5 Ballistic Cannon 1 | . 3 14 3 . . . . . . . . . . . . . Slashing Weapon 1 | . . . . . . . . . . . 5 4 4 12 13 5 Peak Build Rating 87 | 7 9 8 21 22 22 22 35 41 41 42 73 75 78 78 78 87 Average Rating 36 | 5 7 7 19 21 22 22 32 38 41 41 66 72 70 73 73 86 On Entrance 37 | . 7 7 8 21 22 22 22 35 41 41 42 73 72 78 73 78 Naked Turns . | . . . . . . . . . . . . . . . . . Heaviest Build 58 | 15 31 29 37 57 57 57 58 57 57 57 57 34 40 40 40 40 Greatest Support 60 | 40 40 40 40 40 40 40 60 60 60 60 42 45 45 45 42 51 Greatest Overweight (x) 9 | . 9 . . 1 1 1 1 . . . 1 . . . . . Average Overweight (x) . | . . . . . 1 1 . . . . . . . . . . Largest Inventory Capacity 20 | 8 15 15 15 20 20 20 20 20 20 20 20 10 10 10 10 10 Average Capacity 16 | 7 14 15 15 19 20 20 20 20 20 20 10 10 10 10 10 10 Most Carried 20 | 3 15 15 15 15 16 16 20 20 20 20 19 10 10 10 10 9 Average Carried 14 | 1 10 14 14 14 15 16 18 19 19 19 9 9 9 9 10 8 Final Capacity 20 | 8 15 15 15 20 20 20 20 20 20 20 10 10 10 10 10 10 Final Carried 20 | 2 14 15 15 15 16 16 20 20 20 20 10 10 10 10 10 9 Class Distribution -------------------- 51% | Mutant 22% | Commander-Mutant 13% | Hacker-Scout 5% | Scavenger-Mutant 3% | Commander-Scout 3% | Hacker-Mutant Dominant Class ---------------- Mutant | -10/Materials Scavenger-Mutant | -10/Mines Mutant | -9/Materials Mutant | -9/Mines Mutant | -9/Exiles Mutant | -8/Mines Mutant | -8/Materials Mutant | -8/Storage Commander-Mutant | -8/Recycling Commander-Mutant | -8/Scraptown Hacker-Scout | -6/Factory Hacker-Scout | -6/Extension Commander-Scout | -6/Cetus Commander-Scout | -6/Archives Commander-Scout | -6/Hub_04(d) Commander-Scout | -5/Factory Resources | -11 -10 -10 -9 -9 -9 -8 -8 -8 -8 -8 -6 -6 -6 -6 -6 -5 ----------- Run | Yrd Mat Min Mat Min Exi Min Mat Sto Rec Scr Fac Ext Cet Arc Hub Fac Matter Collected 3325 | 161 662 69 387 10 . 10 524 265 48 10 317 595 207 60 . . Remotely . | . . . . . . . . . . . . . . . . . Salvage Created 6536 | 10 1210 102 889 . . . 1525 750 258 . 763 874 5 150 . . Parts 367 | 3 58 9 73 . . . 84 38 13 . 53 21 . 15 . . Haulers Intercepted 13 | . 2 . 3 . . . 2 3 . . 3 . . . . . Recyclers Shooed 4 | . 4 . . . . . . . . . . . . . . . Parts Field Recycled . | . . . . . . . . . . . . . . . . . Retrieved Matter . | . . . . . . . . . . . . . . . . . Parts Self-Destructed . | . . . . . . . . . . . . . . . . . Prevented . | . . . . . . . . . . . . . . . . . Kills | -11 -10 -10 -9 -9 -9 -8 -8 -8 -8 -8 -6 -6 -6 -6 -6 -5 ------- Run | Yrd Mat Min Mat Min Exi Min Mat Sto Rec Scr Fac Ext Cet Arc Hub Fac Combat Hostiles Destroyed 106 | . 19 5 17 . . . 26 17 3 . 7 12 . . . . Melee 7 | . . . . . . . . . . . 7 . . . . . Guns 77 | . 16 1 12 . . . 26 17 3 . . 2 . . . . Cannons 12 | . . 4 5 . . . . . . . . 3 . . . . AOE 10 | . 3 . . . . . . . . . . 7 . . . . Classes Destroyed 14 | 1 8 . 2 . . . 1 . . . 1 1 . . . . Worker 5 | . 1 . . . . . 3 . . . 1 . . . . . Builder 5 | . 1 . 1 . . . . . . . 2 1 . . . . Tunneler 1 | 1 . . . . . . . . . . . . . . . . Hauler 13 | . 2 . 3 . . . 2 3 . . 3 . . . . . Recycler 11 | . 6 . 1 . . . . . 1 . . 3 . . . . Operator 12 | . 2 . 2 . . . 2 . . . 1 1 . 4 . . Watcher 12 | . 2 . 3 . . . 3 . . . 2 1 1 . . . Swarmer 27 | . 6 3 4 . . . 2 8 . . . 4 . . . . Grunt 45 | . 13 2 7 . . . 13 5 . . . 5 . . . . Brawler 2 | . . . 1 . . . 1 . . . . . . . . . Sentry 22 | . . . 5 . . . 7 4 3 . 1 2 . . . . Hunter 3 | . . . . . . . 3 . . . . . . . . . Programmer 6 | . . . . . . . . . . . 6 . . . . . Behemoth 1 | . . . . . . . . . . . . 1 . . . . Best Kill Streak 6 | 1 5 3 6 . . . 5 6 1 . 2 5 1 3 . . Combat Bots Only 6 | . 4 3 6 . . . 3 4 1 . 2 4 . . . . Max Kills in Single Turn 3 | 1 3 1 2 . . . 2 1 1 . 1 2 1 1 . . Gunslinging . | . . . . . . . . . . . . . . . . . Exploded 3 | . 3 . . . . . . . . . . 2 . . . . Melee 1 | . . . . . . . . . . . 1 . . . . . Uniques/NPCs Destroyed . | . . . . . . . . . . . . . . . . . Combat | -11 -10 -10 -9 -9 -9 -8 -8 -8 -8 -8 -6 -6 -6 -6 -6 -5 -------- Run | Yrd Mat Min Mat Min Exi Min Mat Sto Rec Scr Fac Ext Cet Arc Hub Fac Hostile Shots Fired 635 | . 104 20 57 . . . 133 60 6 . 110 116 19 7 3 . Missed 215 | . 37 5 10 . . . 36 18 5 . 46 47 9 2 . . Hits 420 | . 67 15 47 . . . 97 42 1 . 64 69 10 5 3 . Melee 1 | . . . 1 . . . . . . . . . . . . . Projectile 419 | . 67 15 46 . . . 97 42 1 . 64 69 10 5 3 . Critical Strikes 14 | . . . 1 . . . 2 4 . . 1 2 4 . . . Part Disruptions 1 | . . . . . . . . . . . 1 . . . . . Damage Taken 6160 | . 807 175 552 . . . 1439 605 15 . 1113 1013 273 120 48 . Core 1046 | . 114 20 116 . . . 132 74 . . 241 230 100 . 19 . Absorbed by Shields 154 | . . . . . . . . . . . . 38 116 . . . Regen/Repaired (Parts) 952 | . 92 . 138 . . . . 81 . 338 303 . . . . . Core Remaining (%) 61 | 100 . 46 . . . 71 . . . 62 . . . . 30 . Volleys Fired 431 | 1 112 13 63 . . . 93 50 7 . 10 63 12 7 . . Largest 2 | 2 2 2 2 . . . 2 2 2 . 2 2 1 1 . . Hottest 118 | 40 100 100 100 . . . 84 86 86 . 86 118 36 33 . . Shots Fired 744 | 2 195 25 122 . . . 186 100 14 . 13 69 11 7 . . Gun 640 | 2 182 12 103 . . . 186 100 14 . 6 26 2 7 . . Cannon 73 | . 4 12 16 . . . . . . . 7 34 . . . . Launcher 19 | . 1 . . . . . . . . . . 9 9 . . . Special 12 | . 8 1 3 . . . . . . . . . . . . . Kinetic 388 | 2 126 12 60 . . . 93 50 7 . 3 26 2 7 . . Thermal 337 | . 68 13 62 . . . 93 50 7 . 10 34 . . . . Explosive 19 | . 1 . . . . . . . . . . 9 9 . . . Electromagnetic . | . . . . . . . . . . . . . . . . . Robot Hit Streak 18 | 1 11 4 14 . . . 14 18 11 . 3 7 2 4 . . Robot Miss Streak 5 | . 5 2 3 . . . 3 4 1 . 1 4 2 1 . . Penetration Max 2 | . . . . . . . . . . . . 2 . . . . Secondary Targets 7 | . 1 . . . . . 3 3 . . . . . . . . Max Gunslinging Chain 1 | . 1 . . . . . 1 1 . . . . . . . . Shots Hit Robots 529 | 1 122 15 80 . . . 132 68 11 . 29 55 2 14 . . Core Hits 268 | 1 54 7 36 . . . 63 31 5 . 15 35 16 5 . . Critical Kills 3 | . 1 . . . . . 1 . . . . 1 . . . . Critical Parts Destroyed 4 | . . . . . . . . . . . . 4 . . . . Critical Strikes 31 | . 1 1 6 . . . 8 4 . . 1 9 1 . . . Burn 16 | . . . 5 . . . 7 4 . . . . . . . . Destroy 10 | . 1 . . . . . 1 . . . . 8 . . . . Blast 2 | . . 1 1 . . . . . . . . . . . . . Sever 3 | . . . . . . . . . . . 1 1 1 . . . Melee Attacks 101 | . . . . . . . 3 . . . 69 12 5 11 1 . Impact . | . . . . . . . . . . . . . . . . . Slashing 96 | . . . . . . . 3 . . . 69 8 4 11 1 . Piercing 5 | . . . . . . . . . . . . 4 1 . . . Sneak Attacks 14 | . . . . . . . . . . . 7 3 . 4 . . Combat Hostiles . | . . . . . . . . . . . . . . . . . Follow-up Attacks . | . . . . . . . . . . . . . . . . . Damage Inflicted 12005 | 14 1582 221 1410 8 . . 2399 1317 235 . 1353 2465 390 611 . . Guns 6813 | 14 1438 65 1109 . . . 2388 1301 220 . 60 193 . 25 . . Cannons 1268 | . 19 156 255 . . . . . . . . 838 . . . . Explosions 1421 | . 114 . . . . . . . . . . 947 360 . . . Melee 2396 | . . . . . . . . . . . 1293 487 30 586 . . Ramming 83 | . 11 . 22 8 . . 11 16 15 . . . . . . . Kinetic 3688 | 14 1051 156 663 . . . 929 549 88 . 20 193 . 25 . . Thermal 4417 | . 406 65 725 . . . 1459 752 132 . 40 838 . . . . Explosive 1421 | . 114 . . . . . . . . . . 947 360 . . . Electromagnetic . | . . . . . . . . . . . . . . . . . Impact . | . . . . . . . . . . . . . . . . . Slashing 2310 | . . . . . . . . . . . 1293 401 30 586 . . Piercing 86 | . . . . . . . . . . . . 86 . . . . Highest Corruption 13 | . 2 2 . . . . . . . . 7 7 7 7 13 . Average Corruption 5 | . 2 2 . . . . . . . . 4 7 7 7 7 . Corruption Purged . | . . . . . . . . . . . . . . . . . Corruption Blocked . | . . . . . . . . . . . . . . . . . Effects 91 | . 9 3 . . . . . . . . 33 26 10 10 . . Message Errors 30 | . 3 1 . . . . . . . . 9 12 4 1 . . Matter Fused 25 | . 3 2 . . . . . . . . 9 5 1 5 . . Heat Flow Errors 6 | . . . . . . . . . . . 4 . 2 . . . Energy Discharges 11 | . 1 . . . . . . . . . 4 3 1 2 . . Parts Rejected 1 | . . . . . . . . . . . . 1 . . . . Parts Fused 2 | . 1 . . . . . . . . . 1 . . . . . Data Loss (minor) 7 | . . . . . . . . . . . 2 3 1 1 . . Data Loss (major) 5 | . 1 . . . . . . . . . 3 . . 1 . . Alerts 3 | . . . . . . . . . . . 1 2 . . . . Weapon Failures 1 | . . . . . . . . . . . . . 1 . . . Overload Shots . | . . . . . . . . . . . . . . . . . Overflow Damage 493 | . . . . . . . . . . . 198 122 . 173 . . Projectiles 26 | . . . . . . . . . . . . 26 . . . . Explosions 11 | . . . . . . . . . . . . 11 . . . . Melee 456 | . . . . . . . . . . . 198 85 . 173 . . Knockbacks 4 | . 1 3 . . . . . . . . . . . . . . Impact . | . . . . . . . . . . . . . . . . . Kinetic 4 | . 1 3 . . . . . . . . . . . . . . Secondary . | . . . . . . . . . . . . . . . . . Self-Inflicted Damage 26 | . 26 . . . . . . . . . . . . . . . Shots 1 | . 1 . . . . . . . . . . . . . . . Rammed 11 | . 2 . 3 1 . . 1 3 1 . . . . . . . Targets Rammed 12 | . 3 . 3 1 . . 1 3 1 . . . . . . . Kicked . | . . . . . . . . . . . . . . . . . Crushed 1 | . 1 . . . . . . . . . . . . . . . Highest Temperature 459 | . 105 129 230 . . . 147 299 60 . 459 144 236 . . . Average Temperature 52 | . 31 50 44 . . . 34 89 21 . 108 42 116 . . . Received Heat Transfer 1772 | . 324 66 159 . . . 495 270 . . 177 268 13 . . . Effects 2 | . . . 1 . . . . . . . 1 . . . . . Energy Bleed 1 | . . . 1 . . . . . . . . . . . . . Damage (major) 1 | . . . . . . . . . . . 1 . . . . . Siege Activations . | . . . . . . . . . . . . . . . . . Martial Activations . | . . . . . . . . . . . . . . . . . Shielding Activations . | . . . . . . . . . . . . . . . . . Robots Disrupted . | . . . . . . . . . . . . . . . . . Combat Hostiles . | . . . . . . . . . . . . . . . . . Robots Corrupted . | . . . . . . . . . . . . . . . . . Combat Hostiles . | . . . . . . . . . . . . . . . . . Parts Fried . | . . . . . . . . . . . . . . . . . Impact Corruptions . | . . . . . . . . . . . . . . . . . Robots Melted . | . . . . . . . . . . . . . . . . . Combat Hostiles . | . . . . . . . . . . . . . . . . . Parts Melted 8 | . . . . . . . 4 3 . . . 1 . . . . Heat Transferred 9080 | . 925 150 1900 . . . 3182 1665 222 . 74 962 . . . . Parts Sabotaged . | . . . . . . . . . . . . . . . . . Parts Stolen . | . . . . . . . . . . . . . . . . . Parts Stripped . | . . . . . . . . . . . . . . . . . Power Chain Reactions . | . . . . . . . . . . . . . . . . . Alert | -11 -10 -10 -9 -9 -9 -8 -8 -8 -8 -8 -6 -6 -6 -6 -6 -5 ------- Run | Yrd Mat Min Mat Min Exi Min Mat Sto Rec Scr Fac Ext Cet Arc Hub Fac Maximum Alert Level 2 | . . . 1 . . . 1 1 . . 1 1 2 1 1 . Low Security (%) 81 | 100 100 100 42 100 . 100 76 73 100 . 86 72 26 42 84 100 Level 1 18 | . . . 57 . . . 23 26 . . 13 27 58 57 15 . Level 2 . | . . . . . . . . . . . . . 14 . . . Level 3 . | . . . . . . . . . . . . . . . . . Level 4 . | . . . . . . . . . . . . . . . . . Level 5 . | . . . . . . . . . . . . . . . . . High Security . | . . . . . . . . . . . . . . . . . Max Security . | . . . . . . . . . . . . . . . . . Peak Influence 412 | 5 113 86 272 91 . . 277 312 88 . 233 264 412 318 255 146 Initial 152 | . . 16 . 91 . . . 32 67 . . 50 130 152 42 124 Average 93 | . 52 35 170 6 . . 125 118 16 . 106 152 270 223 88 127 Influence Increases 5799 | 5 623 121 754 . . . 843 634 224 . 830 782 502 216 243 22 Destroy 0b10 Robot/C 2880 | . 380 100 440 . . . 520 380 80 . 160 420 220 80 100 . Destroy 0b10 Robot/NC 310 | 5 70 . 50 . . . 50 20 5 . 45 35 10 20 . . Destroy Leader 680 | . 88 20 142 . . . 160 98 . . 90 52 10 . 20 . Allied During Kill 673 | . . . 10 . . . . 59 40 . 18 125 201 100 120 . Successful Hack 257 | . 27 . 42 . . . 11 30 9 . 75 41 . . . 22 Select Force Hacks 90 | . . . . . . . . . 90 . . . . . . . Disable Machine 135 | . 15 . 30 . . . . 15 . . 45 15 . 15 . . Destroy Structure 204 | . 13 1 10 . . . 12 2 . . 37 64 61 1 3 . Partial Spotted 45 | . . . . . . . . . . . 30 15 . . . . Lose Combat Pursuer 525 | . 30 . 30 . . . 90 30 . . 330 15 . . . . Influence Decreases 5653 | 5 581 163 520 234 . . 765 538 398 . 726 652 354 478 108 131 Entered New Map 919 | . . 26 . 143 . . . 46 107 . . 54 104 230 78 131 Time Decay 3719 | 5 531 137 490 91 . . 487 342 271 . 529 428 160 238 10 . Lost Part 150 | . 50 . . . . . 20 . . . 10 30 30 10 . . Lost Ally 307 | . . . 30 . . . . . 20 . 37 140 60 . 20 . Purge Threat 558 | . . . . . . . 258 150 . . 150 . . . . . Squads Dispatched 33 | . 4 1 2 . . . 5 1 . . 14 2 1 . 3 . Investigation 14 | . 2 . . . . . 3 . . . 6 . 1 . 2 . Extermination 5 | . . . . . . . . . . . 5 . . . . . Reinforcement 12 | . 2 . 2 . . . 2 1 . . 3 2 . . . . Assault 1 | . . 1 . . . . . . . . . . . . . . Garrison 1 | . . . . . . . . . . . . . . . 1 . Intercept . | . . . . . . . . . . . . . . . . . Searches Triggered . | . . . . . . . . . . . . . . . . . Construction Impeded 1 | . . . . . . . . . . . . 1 . . . . Haulers Reinforced . | . . . . . . . . . . . . . . . . . Active Scanning Responses . | . . . . . . . . . . . . . . . . . Cargo Convoy Interrupts . | . . . . . . . . . . . . . . . . . Stealth | -11 -10 -10 -9 -9 -9 -8 -8 -8 -8 -8 -6 -6 -6 -6 -6 -5 --------- Run | Yrd Mat Min Mat Min Exi Min Mat Sto Rec Scr Fac Ext Cet Arc Hub Fac Distress Signals 14 | . 1 . 4 . . . 7 1 . . . . 1 . . . Communications Jammed . | . . . . . . . . . . . . . . . . . Distress Signals . | . . . . . . . . . . . . . . . . . Times Spotted 237 | . 33 5 34 . . . 41 25 3 . 41 23 17 12 3 . Peak Tracking Total 7 | . 5 3 5 . . . 5 5 1 . 7 4 5 1 3 . Tactical Retreats 23 | . 2 . 2 . . . 5 1 . . 12 1 . . . . Traps | -11 -10 -10 -9 -9 -9 -8 -8 -8 -8 -8 -6 -6 -6 -6 -6 -5 ------- Run | Yrd Mat Min Mat Min Exi Min Mat Sto Rec Scr Fac Ext Cet Arc Hub Fac Traps Triggered 7 | . 3 . . . . . 3 . . . . 1 . . . . Indirectly . | . . . . . . . . . . . . . . . . . Trap Hack Attempts . | . . . . . . . . . . . . . . . . . Triggered . | . . . . . . . . . . . . . . . . . Disarmed . | . . . . . . . . . . . . . . . . . Reprogrammed 3 | . 3 . . . . . . . . . . . . . . . Reused . | . . . . . . . . . . . . . . . . . Traps Extracted . | . . . . . . . . . . . . . . . . . Installed . | . . . . . . . . . . . . . . . . . Triggered . | . . . . . . . . . . . . . . . . . Machines | -11 -10 -10 -9 -9 -9 -8 -8 -8 -8 -8 -6 -6 -6 -6 -6 -5 ---------- Run | Yrd Mat Min Mat Min Exi Min Mat Sto Rec Scr Fac Ext Cet Arc Hub Fac Machines Disabled 10 | . 1 . 2 . . . . 1 . . 3 2 . 1 . . Max in Single Turn 2 | . 1 . 2 . . . . 1 . . 1 1 . . . . Garrison Access 3 | . . . . . . . . . . . 3 . . . . . Machines Repaired . | . . . . . . . . . . . . . . . . . Machines Dismantled . | . . . . . . . . . . . . . . . . . Machines Sabotaged . | . . . . . . . . . . . . . . . . . Overloaded Fab Kills . | . . . . . . . . . . . . . . . . . Hacking | -11 -10 -10 -9 -9 -9 -8 -8 -8 -8 -8 -6 -6 -6 -6 -6 -5 --------- Run | Yrd Mat Min Mat Min Exi Min Mat Sto Rec Scr Fac Ext Cet Arc Hub Fac Machines Accessed 90 | . 8 . 11 1 1 . 9 10 9 2 21 13 1 . 3 1 Terminals 63 | . 6 . 10 . . . 8 9 6 . 7 13 1 . 2 1 Fabricators 2 | . . . . . . . . . . . 2 . . . . . Repair Stations 6 | . 1 . 1 . . . . 1 . . 3 . . . . . Recycling Units 9 | . 1 . . . . . . . 3 . 5 . . . . . Scanalyzers 2 | . . . . . . . 1 . . . 1 . . . . . Garrison Access 4 | . . . . . . . . . . . 3 . . . 1 . Total Hacks 253 | . 29 . 36 1 1 . 34 32 22 6 54 24 3 . 7 4 Successful 168 | . 19 . 21 1 1 . 21 23 12 6 40 19 . . 2 3 Failed 84 | . 10 . 14 . . . 13 9 10 . 14 5 3 . 5 1 Catastrophic 6 | . . . 1 . . . 1 . . . 1 . 2 . 1 . Database Lockouts 1 | . . . 1 . . . . . . . . . . . . . Manual 133 | . 15 . 27 . . . 19 9 19 . 22 14 1 . 4 3 Terminals 190 | . 22 . 33 . . . 31 29 19 . 21 24 3 . 4 4 Fabricators 5 | . . . . . . . . . . . 5 . . . . . Repair Stations 25 | . 5 . 3 . . . . 3 . . 14 . . . . . Recycling Units 14 | . 2 . . . . . . . 3 . 9 . . . . . Scanalyzers 5 | . . . . . . . 3 . . . 2 . . . . . Garrison Access 6 | . . . . . . . . . . . 3 . . . 3 . Terminal Hacks 63 | . 4 . 7 1 1 . 10 15 3 6 4 11 . . . 1 Record 7 | . . . . . 1 . . . . 6 . . . . . . Part Schematic 1 | . . . . . . . . . . . 1 . . . . . Robot Analysis 3 | . . . 2 . . . 1 . . . . . . . . . Prototype ID Bank 9 | . 2 . 1 . . . 2 2 1 . . 1 . . . . Open Door 12 | . . . . 1 . . . 4 . . . 7 . . . . Level Access Points 1 | . . . . . . . . 1 . . . . . . . . Branch Access Points 1 | . . . . . . . 1 . . . . . . . . . Terminal Index 4 | . . . 1 . . . 1 . 1 . . 1 . . . . Recycling Unit Index 1 | . . . . . . . . . 1 . . . . . . . Alert Level 1 | . . . . . . . . 1 . . . . . . . . Unreport Threat 4 | . . . . . . . 2 1 . . 1 . . . . . Locate Traps 4 | . 1 . . . . . . 2 . . . 1 . . . . Reprogram Traps 1 | . 1 . . . . . . . . . . . . . . . Maintenance Status 1 | . . . . . . . . 1 . . . . . . . . Transport Status 2 | . . . 1 . . . 1 . . . . . . . . . Recall Investigation 1 | . . . . . . . 1 . . . . . . . . . Hauler Manifests 3 | . . . 1 . . . 1 1 . . . . . . . . Registered Components 3 | . . . 1 . . . . . . . 1 . . . . 1 Registered Prototypes 1 | . . . . . . . . 1 . . . . . . . . Zone Layout 3 | . . . . . . . . 1 . . 1 1 . . . . Fabricator Hacks 3 | . . . . . . . . . . . 3 . . . . . Network Status 1 | . . . . . . . . . . . 1 . . . . . Load Schematic 1 | . . . . . . . . . . . 1 . . . . . Build 1 | . . . . . . . . . . . 1 . . . . . Repair Station Hacks 22 | . 4 . 2 . . . . 2 . . 14 . . . . . Scan Component 11 | . 2 . 1 . . . . 1 . . 7 . . . . . Repair 11 | . 2 . 1 . . . . 1 . . 7 . . . . . Recycling Unit Hacks 1 | . 1 . . . . . . . . . . . . . . . Retrieve Components 1 | . 1 . . . . . . . . . . . . . . . Scanalyzer 5 | . . . . . . . 3 . . . 2 . . . . . Insert Component 2 | . . . . . . . 1 . . . 1 . . . . . Analyze 3 | . . . . . . . 2 . . . 1 . . . . . Garrison Access Hacks 3 | . . . . . . . . . . . 3 . . . . . Seal Access 3 | . . . . . . . . . . . 3 . . . . . Unauthorized Hacks 71 | . 10 . 12 . . . 8 6 9 . 14 8 . . 2 2 Terminals 61 | . 9 . 12 . . . 8 6 6 . 8 8 . . 2 2 Track 1 | . . . . . . . . . . . . 1 . . . . Assimilate 2 | . . . 1 . . . . . . . 1 . . . . . Botnet 17 | . 3 . 4 . . . 3 1 1 . 2 2 . . . 1 Disrupt 2 | . . . 1 . . . . . . . . 1 . . . . Operators 2 | . 1 . 1 . . . . . . . . . . . . . Skim 35 | . 5 . 5 . . . 5 5 5 . 5 4 . . . 1 Sabotage 2 | . . . . . . . . . . . . . . . 2 . Fabricators 1 | . . . . . . . . . . . 1 . . . . . Prioritize 1 | . . . . . . . . . . . 1 . . . . . Repair Stations . | . . . . . . . . . . . . . . . . . Recycling Units 9 | . 1 . . . . . . . 3 . 5 . . . . . Recyclers 1 | . 1 . . . . . . . . . . . . . . . Tunnel 3 | . . . . . . . . . 3 . . . . . . . Fedlink 5 | . . . . . . . . . . . 5 . . . . . Scanalyzers . | . . . . . . . . . . . . . . . . . Garrison Access . | . . . . . . . . . . . . . . . . . Data Cores Recovered . | . . . . . . . . . . . . . . . . . Used . | . . . . . . . . . . . . . . . . . Hacking Detections 57 | . 7 . 11 . . . 9 5 5 . 11 4 2 . 2 1 Full Trace Events 4 | . 1 . . . . . 1 . . . 1 . 1 . . . Feedback Events . | . . . . . . . . . . . . . . . . . Feedback Blocked . | . . . . . . . . . . . . . . . . . Robot Schematics Acquired . | . . . . . . . . . . . . . . . . . Robots Built . | . . . . . . . . . . . . . . . . . Authchips . | . . . . . . . . . . . . . . . . . Time . | . . . . . . . . . . . . . . . . . Total Robot Build Rating . | . . . . . . . . . . . . . . . . . Part Schematics Acquired 3 | . . . . . . . 1 . . . 2 . . . . . Parts Built 1 | . . . . . . . . . . . 1 . . . . . Authchips . | . . . . . . . . . . . . . . . . . Time 76 | . . . . . . . . . . . 76 . . . . . Total Part Build Rating 5 | . . . . . . . . . . . 5 . . . . . Parts Repaired 11 | . 2 . 1 . . . . 1 . . 7 . . . . . Time 520 | . 52 . 38 . . . . 70 . . 360 . . . . . Parts Recycled . | . . . . . . . . . . . . . . . . . Recycled Matter . | . . . . . . . . . . . . . . . . . Retrieved Matter . | . . . . . . . . . . . . . . . . . Retrieved Components 1 | . 1 . . . . . . . . . . . . . . . Parts Scanalyzed 2 | . . . . . . . 1 . . . 1 . . . . . Part Schematics Acquired 2 | . . . . . . . 1 . . . 1 . . . . . Parts Damaged 1 | . . . . . . . 1 . . . . . . . . . Bothacking | -11 -10 -10 -9 -9 -9 -8 -8 -8 -8 -8 -6 -6 -6 -6 -6 -5 ------------ Run | Yrd Mat Min Mat Min Exi Min Mat Sto Rec Scr Fac Ext Cet Arc Hub Fac Used RIF Installer . | . . . . . . . . . . . . . . . . . Robots Hacked . | . . . . . . . . . . . . . . . . . Non-combat . | . . . . . . . . . . . . . . . . . Combat . | . . . . . . . . . . . . . . . . . Robot Hacks Applied . | . . . . . . . . . . . . . . . . . Relay Couplers Released . | . . . . . . . . . . . . . . . . . Fabnet Peak Effective % . | . . . . . . . . . . . . . . . . . Robots Rewired 6 | . . . . . . . . . . . . 6 . . . . Allies Hacked . | . . . . . . . . . . . . . . . . . Hacks Repelled . | . . . . . . . . . . . . . . . . . Allies | -11 -10 -10 -9 -9 -9 -8 -8 -8 -8 -8 -6 -6 -6 -6 -6 -5 -------- Run | Yrd Mat Min Mat Min Exi Min Mat Sto Rec Scr Fac Ext Cet Arc Hub Fac Total Allies 34 | . . 1 1 . . . . 10 . . 1 16 5 . . . Largest Group 10 | . . 1 1 . . . . 10 8 7 7 8 10 9 8 6 Highest-Rated Group 765 | . . 31 31 . . . . 173 128 112 112 341 765 710 567 427 Highest-Rated Ally 159 | . . 31 31 . . . . 29 16 16 16 159 159 143 96 96 Total Orders . | . . . . . . . . . . . . . . . . . Ally Attacks 244 | . . . 15 . . . . 21 17 . 22 67 55 25 22 . Total Damage 5934 | . . . 268 . . . . 293 174 . 227 1638 1538 997 799 . Kills 45 | . . . 5 . . . . 4 1 . 2 12 12 4 5 . Allies Corrupted . | . . . . . . . . . . . . . . . . . Allies Melted . | . . . . . . . . . . . . . . . . . Intel | -11 -10 -10 -9 -9 -9 -8 -8 -8 -8 -8 -6 -6 -6 -6 -6 -5 ------- Run | Yrd Mat Min Mat Min Exi Min Mat Sto Rec Scr Fac Ext Cet Arc Hub Fac Active Infowar (turns) 17525 | 44 1753 . 1778 1347 706 1185 2251 804 1362 2129 2240 1050 330 501 32 13 Optics 689 | . . . . . . . . . . . . . 143 501 32 13 Sensors 14815 | . . . 1778 1347 706 1185 2251 804 1362 2129 2183 1050 20 . . . Terrain 3395 | . . . . . . . . . . . 1560 959 330 501 32 13 Seismic 1797 | 44 1753 . . . . . . . . . . . . . . . Decoding 4166 | . . . . . . . . . . . 2240 1050 330 501 32 13 Robot Analysis Total 3 | . . . 2 . . . 1 . . . . . . . . . Derelict Logs Recovered 3 | . . 1 . 2 . . . . . . . . . . . . Drone Launches . | . . . . . . . . . . . . . . . . . Drone Recoveries . | . . . . . . . . . . . . . . . . . Decoded 0b10 Intel 80 | . . . . . . . . . . . 56 18 4 1 1 . Traps 1 | . . . . . . . . . . . . 1 . . . . Emergency Access 4 | . . . . . . . . . . . 3 . . . 1 . Items 55 | . . . . . . . . . . . 42 13 . . . . Machines 8 | . . . . . . . . . . . 3 2 2 1 . . Patrols 6 | . . . . . . . . . . . 4 2 . . . . Guards 4 | . . . . . . . . . . . 4 . . . . . Exits 2 | . . . . . . . . . . . . . 2 . . . Exploration | -11 -10 -10 -9 -9 -9 -8 -8 -8 -8 -8 -6 -6 -6 -6 -6 -5 ------------- Run | Yrd Mat Min Mat Min Exi Min Mat Sto Rec Scr Fac Ext Cet Arc Hub Fac Turns Passed 18397 | 98 2143 333 1778 1347 706 1185 2346 804 1362 2129 2240 1050 330 501 32 13 Spaces Moved 10834 | 52 1023 182 831 539 282 470 1098 292 550 1241 2916 934 266 94 47 17 Core 13 | 2 11 . . . . . . . . . . . . . . . Treads 6416 | 50 881 182 831 539 282 470 1098 292 550 1241 . . . . . . Legs . | . . . . . . . . . . . . . . . . . Wheels 131 | . 131 . . . . . . . . . . . . . . . Hover 4274 | . . . . . . . . . . . 2916 934 266 94 47 17 Flight . | . . . . . . . . . . . . . . . . . Fastest Speed 38 | 50 105 160 160 170 250 250 163 163 170 170 38 54 62 56 59 53 Average Speed 129 | 155 158 160 169 248 250 250 167 166 170 170 45 55 62 58 59 53 Slowest Speed 500 | 160 500 160 170 250 250 250 250 170 170 170 102 63 63 62 59 53 Overloaded Moves . | . . . . . . . . . . . . . . . . . Propulsion Burnouts . | . . . . . . . . . . . . . . . . . Robots Hopped . | . . . . . . . . . . . . . . . . . Potential Cave-ins 2 | . . . . . . . . . . . 2 . . . . . Cave-ins Triggered 1 | . . . . . . . . . . . 1 . . . . . Exploration Rate (%) 63 | 4 97 35 65 99 73 101 74 60 96 88 52 83 64 79 7 2 Regions Visited 16 Branch Regions 11 Pre-discovered Areas 16 | . . 1 . 2 1 . . 6 4 . 2 . . . . . Known Exits Taken 14 | . . 1 1 1 1 1 1 1 1 1 1 1 1 1 1 . Unknown Exits Taken 2 | 1 1 . . . . . . . . . . . . . . . Scrap Searched 9 | . . . . 1 . 1 . . . 7 . . . . . . Spaces Dug 55 | . 4 1 2 . . . 3 . . . 34 10 . . 1 . Terrain Destroyed 230 | . 12 1 2 . . . 3 . . . 39 77 95 . 1 . Melee 36 | . . . . . . . 3 . . . 32 . . . 1 . Projectile 21 | . 5 1 2 . . . . . . . 7 6 . . . . AOE 172 | . 7 . . . . . . . . . . 70 95 . . . Terrain Rammed . | . . . . . . . . . . . . . . . . . Walls Destroyed . | . . . . . . . . . . . . . . . . . Machines Disabled . | . . . . . . . . . . . . . . . . . Actions | -11 -10 -10 -9 -9 -9 -8 -8 -8 -8 -8 -6 -6 -6 -6 -6 -5 --------- Run | Yrd Mat Min Mat Min Exi Min Mat Sto Rec Scr Fac Ext Cet Arc Hub Fac Total 14287 | 64 1328 196 1070 545 284 481 1423 531 966 1263 3765 1375 407 521 48 20 Wait 2532 | 2 152 . 120 2 . 12 164 155 407 12 688 312 112 394 . . Move 10817 | 51 1022 181 830 538 281 469 1097 291 549 1240 2914 933 265 93 46 17 Hop . | . . . . . . . . . . . . . . . . . Pick Up 98 | 3 16 1 16 1 1 . 19 9 1 5 13 3 3 6 . 1 Fast Attach 38 | 6 6 . 4 . . . 4 2 . . 12 3 . 1 . . Attach 28 | 1 1 . 3 . . . 6 . . . 7 3 3 2 . 2 Detach 6 | . . . . . . . 3 . . . 2 . . 1 . . Swap 89 | . 10 1 12 1 1 . 15 8 . 1 23 9 6 1 1 . Drop 100 | . 6 . 19 2 1 . 18 13 1 5 26 2 1 6 . . Fire 431 | 1 112 13 63 . . . 93 50 7 . 10 63 12 7 . . Melee 100 | . . . . . . . 3 . . . 69 12 5 10 1 . Ram 1 | . 1 . . . . . . . . . . . . . . . Kick . | . . . . . . . . . . . . . . . . . Crush 11 | . 2 . 3 1 . . 1 3 1 . . . . . . . Escape Stasis 12 | . . . . . . . . . . . 1 11 . . . . Rewire 24 | . . . . . . . . . . . . 24 . . . . Trap . | . . . . . . . . . . . . . . . . . Miscellaneous . | . . . . . . . . . . . . . . . . . Route ------- -11/Scrapyard -10/Materials (discovered 6 exits: *Mat x3 / [*Min x2] / Sub) -10/Mines (discovered 2 exits: *Mat x2) -9/Materials (discovered 5 exits: *Mat x3 / *Min x2) -9/Mines (discovered 4 exits: *Mat x2 / *Exi / *Zio) -9/Exiles -8/Mines (discovered 2 exits: *Mat x2) -8/Materials (discovered 5 exits: *Fac x3 / *Sto x2) -8/Storage (discovered 2 exits: Fac / *Rec) -8/Recycling (discovered 2 exits: *Fac / *Scr) -8/Scraptown (discovered 2 exits: *Fac x2) -6/Factory (discovered 7 exits: *Fac x3 / *Low x2 / *Ext x2) -6/Extension (discovered 2 exits: *Fac / *Cet) -6/Cetus (discovered 2 exits: *Fac / *Arc) -6/Archives (discovered 3 exits: *Fac / *Hub x2) -6/Hub_04(d) (discovered 2 exits: *Fac x2) -5/Factory History --------- Turn | Location | Event 27 | -11/Scrapyard | Discovered new exit (range 15) 99 | -11/Scrapyard | Entered Materials 325 | -10/Materials | Build established: Mutant 371 | -10/Materials | Discovered new exit (range 11) 570 | -10/Materials | Discovered new exit (range 12) 991 | -10/Materials | Discovered new exit (range 16) 1348 | -10/Materials | Discovered new exit (range 15) 1419 | -10/Materials | Discovered new exit (range 15) 1630 | -10/Materials | Build established: Scavenger-Mutant 1999 | -10/Materials | Learned 2 Mines zone layouts 2093 | -10/Materials | Learned 4 Subcaves zone layouts 2127 | -10/Materials | Repaired Lgt. Treads 2128 | -10/Materials | Identified exit to Subcaves 2154 | -10/Materials | Repaired Lgt. Cannon 2186 | -10/Materials | Learned Storage stockpile data 2242 | -10/Materials | Entered Mines 2243 | -10/Mines | Identified exit to Materials 2356 | -10/Mines | Core integrity fell below 50% 2540 | -10/Mines | Learned location of Mines (-8) 2563 | -10/Mines | Discovered exit to Materials (range 8) 2564 | -10/Mines | Met a Derelict testing a Signal Generator 2575 | -10/Mines | Entered Materials 2575 | -9/Materials | Accompanied by 1 ally 2575 | -9/Materials | Evolved 2 slots: Utility x2 2791 | -9/Materials | Central database locked down 2865 | -9/Materials | Build established: Mutant 2919 | -9/Materials | Discovered new exit (range 6) 2934 | -9/Materials | Identified exit to Mines 3010 | -9/Materials | Discovered new exit (range 11) 3423 | -9/Materials | Identified exit to Materials 3500 | -9/Materials | Loaded intel: 9 trap records 3566 | -9/Materials | Learned Storage interactive machine intel 3624 | -9/Materials | Learned location of 1 exit from Storage 3710 | -9/Materials | Learned 4 Recycling zone layouts 3812 | -9/Materials | Learned Storage security intel 4078 | -9/Materials | Repaired Arm. Treads 4353 | -9/Materials | Entered Mines 4424 | -9/Mines | Deemed a non-threat by the Exiles lab entrance 4424 | -9/Mines | Discovered new exit (range 5) 4576 | -9/Mines | Discovered exit to Materials (range 11) 4617 | -9/Mines | Found the Drone Emporium 4693 | -9/Mines | Received a Rocket Launcher from a helpful Derelict 4816 | -9/Mines | A weapon hastily lodged in a ceiling crevice suddenly fell to the ground 5401 | -9/Mines | Learned location of Storage (-8) 5406 | -9/Mines | Found a hidden stash of uninstalled traps 5420 | -9/Mines | A Derelict revealed a hidden shortcut to a safe place 5426 | -9/Mines | Identified exit to Zion 5446 | -9/Mines | Learned location of Zion (-7) 5697 | -9/Mines | Identified exit to Exiles 5700 | -9/Mines | Entered Exiles 5760 | -9/Exiles | Met 8R-AWN 5803 | -9/Exiles | Met EX-HEX 5961 | -9/Exiles | Met EX-DEC 6019 | -9/Exiles | Visited The Gauntlet 6376 | -9/Exiles | Discovered new exit (range 14) 6403 | -9/Exiles | Identified exit to Mines 6406 | -9/Exiles | Entered Mines 7277 | -8/Mines | Discovered exit to Materials (range 14) 7551 | -8/Mines | Discovered exit to Materials (range 8) 7591 | -8/Mines | Entered Materials 7591 | -8/Materials | Evolved 2 slots: Propulsion x1, Utility x1 8983 | -8/Materials | Identified exit to Storage 9064 | -8/Materials | Learned Factory terminal intel 9137 | -8/Materials | Identified exit to Factory 9202 | -8/Materials | Learned location of 1 exit from Recycling 9305 | -8/Materials | Learned Factory security intel 9937 | -8/Materials | Entered Storage 9938 | -8/Storage | Identified exit to Recycling 9941 | -8/Storage | Loaded intel: 21 interactive machine locations 10485 | -8/Storage | Assisted by bots powering up and referring to "LRC-V3" 10656 | -8/Storage | Learned location of Extension (-6) 10673 | -8/Storage | Learned 2 Lower Caves zone layouts 10678 | -8/Storage | Learned location of Recycling (-8) 10680 | -8/Storage | Learned Factory trap positions 10681 | -8/Storage | Learned location of 2 exits from Factory 10684 | -8/Storage | Repaired Cld. Deuterium Engine 10694 | -8/Storage | Learned Storage security intel 10724 | -8/Storage | Used back door to open Recycling access 10741 | -8/Storage | Entered Recycling 10741 | -8/Recycling | Accompanied by 8 allies 10742 | -8/Recycling | Identified exit to Factory 10743 | -8/Recycling | Identified exit to Scraptown 10781 | -8/Recycling | Build established: Commander-Mutant 11530 | -8/Recycling | Learned Storage trap positions 11604 | -8/Recycling | Learned Factory recycling unit intel 11721 | -8/Recycling | Learned Storage trap positions 11799 | -8/Recycling | Learned Factory trap positions 11858 | -8/Recycling | Learned 4 Lower Caves zone layouts 11904 | -8/Recycling | Learned Storage garrison access intel 11958 | -8/Recycling | Learned Storage terminal intel 12021 | -8/Recycling | Learned Storage trap positions 12049 | -8/Recycling | Scanned before Scraplab entrance 12073 | -8/Recycling | Entered Scraplab 12103 | -8/Recycling | Entered Scraptown 12103 | -8/Scraptown | Accompanied by 7 allies 12499 | -8/Scraptown | Visited CR-KLE's Repair Center 12511 | -8/Scraptown | CR-KLE repaired 4 parts 12552 | -8/Scraptown | Visited Bundlers 12669 | -8/Scraptown | Visited Shadow of the Wyrm 12684 | -8/Scraptown | Visited Awakened 12773 | -8/Scraptown | Visited Fellowship of the Rings 12820 | -8/Scraptown | Heard Great Nut preacher, LISTEN AND RECITE! 13038 | -8/Scraptown | Visited Cyclists 13057 | -8/Scraptown | Visited The Evicted 13142 | -8/Scraptown | Visited UFD Registry 13142 | -8/Scraptown | Registered with UFD as "Chainslicer" 13199 | -8/Scraptown | Visited Abandonware Association 13223 | -8/Scraptown | Learned abandonware demo "SHUTEYE.EXE" 13223 | -8/Scraptown | Learned abandonware demo "KABOOM.EXE" 13270 | -8/Scraptown | Visited Junk Repository 13576 | -8/Scraptown | Visited Chapter 10 13618 | -8/Scraptown | Visited Infowarlord's Domain 13681 | -8/Scraptown | Visited Research Penetration Think Tank 13846 | -8/Scraptown | Visited Science Testing Area 13880 | -8/Scraptown | Visited Scrap Suit Storage 14019 | -8/Scraptown | Visited Curators Association 14220 | -8/Scraptown | Discovered exit to Factory (range 3) 14232 | -8/Scraptown | Entered Factory 14232 | -6/Factory | Accompanied by 7 allies 14232 | -6/Factory | Evolved 4 slots: Propulsion x1, Utility x3 14233 | -6/Factory | Identified exit to Lower Caves 14233 | -6/Factory | Identified exit to Extension 14234 | -6/Factory | Identified exit to Factory 14235 | -6/Factory | Loaded intel: 120 trap records 14237 | -6/Factory | Loaded intel: 28 terminal locations 14238 | -6/Factory | Loaded intel: 8 recycling unit locations 14422 | -6/Factory | Loaded intel: 8 recycling unit locations 14585 | -6/Factory | Lost 6 allies 14827 | -6/Factory | Build established: Hacker-Mutant 15143 | -6/Factory | Build established: Hacker-Scout 15334 | -6/Factory | Repaired Imp. Sensor Array 15653 | -6/Factory | Learned Factory trap positions 15683 | -6/Factory | Crushed by falling debris 15754 | -6/Factory | Learned location of Warlord (-4) 15815 | -6/Factory | Repaired Cmb. Airjet 15817 | -6/Factory | Learned Extension emergency access door positions 15866 | -6/Factory | Repaired Adv. Terrain Scanner 15902 | -6/Factory | Learned location of 1 exit from Hub_04(d) 15940 | -6/Factory | Repaired Cld. Deuterium Engine 15958 | -6/Factory | Learned Hub_04(d) terminal intel 15985 | -6/Factory | Repaired Mak. Axe 16100 | -6/Factory | Fabricated Cld. Aerolev Unit? 16247 | -6/Factory | Repaired Cld. Deuterium Engine 16286 | -6/Factory | Repaired Missile Launcher 16472 | -6/Factory | Entered Extension 16709 | -6/Extension | Rescued a captive Derelict 16710 | -6/Extension | Rescued a captive Derelict 16766 | -6/Extension | Rescued a captive Derelict 16767 | -6/Extension | Rescued a captive Derelict 16798 | -6/Extension | Rescued a captive Derelict 16815 | -6/Extension | Rescued a captive Derelict 17137 | -6/Extension | Spotted B-75 Beast 17154 | -6/Extension | Destroyed B-75 Beast 17172 | -6/Extension | Spotted B-75 Beast 17215 | -6/Extension | Allies destroyed B-75 Beast 17216 | -6/Extension | Lost 7 allies 17272 | -6/Extension | Core integrity fell below 50% 17283 | -6/Extension | Rescued A7 17332 | -6/Extension | Rescued a captive Derelict 17332 | -6/Extension | Rescued a captive Derelict 17345 | -6/Extension | Rescued a captive Derelict 17345 | -6/Extension | Rescued a captive Derelict 17457 | -6/Extension | Discovered new exit (range 20) 17465 | -6/Extension | Discovered exit to Factory (range 10) 17475 | -6/Extension | Identified exit to Cetus 17522 | -6/Extension | Entered Cetus 17522 | -6/Cetus | Accompanied by 7 allies (A7) 17527 | -6/Cetus | Acquired a Cetus Manufacturing Module code from A7 17535 | -6/Cetus | Spotted Cetus Guard 17535 | -6/Cetus | Spotted Cetus Guard 17545 | -6/Cetus | Spotted Cetus Guard 17546 | -6/Cetus | Spotted Cetus Guard 17547 | -6/Cetus | Allies destroyed Cetus Guard 17551 | -6/Cetus | Allies destroyed Cetus Guard 17553 | -6/Cetus | Allies destroyed Cetus Guard 17554 | -6/Cetus | Allies destroyed Cetus Guard 17582 | -6/Cetus | Lost 3 parts (1p1n1u) 17583 | -6/Cetus | Started Cetus Manufacturing Module 17608 | -6/Cetus | Manufactured an Enhanced Grunt 17633 | -6/Cetus | Manufactured an Enhanced Grunt 17658 | -6/Cetus | Manufactured an Enhanced Grunt 17667 | -6/Cetus | Identified exit to Archives 17683 | -6/Cetus | Manufactured an Enhanced Grunt 17708 | -6/Cetus | Manufactured an Enhanced Grunt 17752 | -6/Cetus | Spotted Cetus Guard 17752 | -6/Cetus | Spotted Cetus Guard 17752 | -6/Cetus | Spotted Cetus Guard 17752 | -6/Cetus | Spotted Cetus Guard 17768 | -6/Cetus | Allies destroyed Cetus Guard 17772 | -6/Cetus | Allies destroyed Cetus Guard 17773 | -6/Cetus | Allies destroyed Cetus Guard 17774 | -6/Cetus | Allies destroyed Cetus Guard 17789 | -6/Cetus | Met Revision 17 17852 | -6/Cetus | Entered Archives 17852 | -6/Archives | Accompanied by 9 allies (A7) 17903 | -6/Archives | Discovered new exit (range 21) 17905 | -6/Archives | Discovered new exit (range 20) 17911 | -6/Archives | Discovered exit to Factory (range 22) 17966 | -6/Archives | Identified exit to Hub_04(d) 18010 | -6/Archives | Build established: Commander-Scout 18353 | -6/Archives | Entered Hub_04(d) 18353 | -6/Hub_04(d) | Accompanied by 8 allies 18353 | -6/Hub_04(d) | Discovered exit to Factory (range 10) 18355 | -6/Hub_04(d) | Loaded intel: 13 terminal locations 18378 | -6/Hub_04(d) | Garrison activated, responded to threat 18384 | -6/Hub_04(d) | System corruption reached 10% 18385 | -6/Hub_04(d) | Entered Factory 18385 | -5/Factory | Accompanied by 6 allies 18385 | -5/Factory | Evolved 2 slots: Propulsion x1, Utility x1 18386 | -5/Factory | Loaded intel: 99 trap records 18398 | -5/Factory | Self-destructed Last Messages --------------- XDIUJE73FW: Disruptor Cannon GHJGLCE1B0: Field Propulsion Drive N2AL29ZCO4: Arm. Huge Wheel QX1DWBQ4VG: Adv. Terrain Scanner W9FRVJFRPB: Imp. Hacking Suite KKU9J92KE7: Xenon Bombardment Thruster M6M59NZVFO: Hcp. Matter Pod CQD3401BXI: ECM Suite Y4O5HTKB1R: Linear Gravjet Downloaded coordinate data. >>Trojan(Botnet) Trojan loaded successfully. Testing... Terminal linked with 0 systems. Awaiting botnet instructions. >>Trojan(Skim) Trojan loaded successfully. Testing... Terminal linked with 0 systems. Please expand to 4 more systems! Map ----- +----------------------------------------------------+ | ???????????????????????????????????????????????? | | ?????????????????????????!?????????????????????? | | ???????????????????????????????????????????????? | | ?????????????????????? !?????????????????????? | | ???????????^?????????? ???????????????????? | | ?????????????? ??? /??????????????????? | | ?????????^???" ?? #??????????????????? | | ??????????^??" ??" #??????????????????? | | ????????????"" ??" #?"????????????????? | | ??????????^?"" ?"" #?????? ???????????? | | ??????????^^ # ??"??????????????? | | ?????????? """ #??????????????????? | | ?????????? """ """ +????????????????=?? | | ????????? ?""" u """ #??????????????????? | | ??????? ? ? """ #??????????????????? | | ????? ? ? ?? #??????????????????? | | ????????? ?? #??????????????????? | | ???????## #?#??# ###############????? | | ??#??#??# ?????# #????? | | #???##### ? ?? # [ ?????? | | ????#???# ??? ?# ??????? | | ?#?#?#### ?????# ??????????? | | #????# +????# ??????????????? | | ?#???# # ???# #??????????????????? | | ???### ###### #? ???????????????? | | ?????# @ #? ? ??#?? ???????? | | ?????#+## ""T"" #??????????? ??????? | | ????????# g g """"" +????? #???????????? | | ?? ?????# #?????????? ???????? | | #??? ???# #? ????#???????????? | | ????????# g ### #???? ?????????????? | | ?#?###### hb #?? # ???#? ????????? | | ???#??# g #???#??????#???????????? | | ??????# #??????????????????????? | | ??#???# #??????? ??? ?????????? | | ??????# #####? #?? ???????????????? | | #?#?#?# #????#???? ? ??#??????????? | | ?????#####+####### #??##?+???#?##????????????? | | ????????? ?? ?# ##????????????????????????? | | ??????? ? ?? ?+ +???"?????"?????????????? | | ??#?????? ????###+###???????????????????????? | | ??#?????? ??? ##? ? ???"???"??"?????????????? | | ???#?????"" ""?? ##?? ?????? ??????????????????? | | ????#????"" ""?????? ??#???????????????????????? | | ????????""" """??#?? ? ??????!?????????????????? | | ???????? ??##?????? ?????????????????????? | | ????????""" """ ??#? ??#? ?????????????????????? | | #???????""" """ ????? ?????????????????????????? | | ??????????? ""?????????????????????????????????? | | ???#???? ?? ????#?????????????????????????????? | +----------------------------------------------------+ Best States ------------- Heat Dissipation 56 Energy Generation 25 Energy Capacity 350 Matter Stores 300 Matter Capacity 300 Sight Range 22 Robot Scan Range 15 Terrain Scan Range 20 Terrain Scan Density 210 Evasion (%) 57 Targeting Accuracy 8 Recoil Reduction 3 Offensive Hacking 24 Defensive Hacking 12 Item Schematics ----------------- Aerolev Unit | -8/Materials | Scanalyzed Cld. Aerolev Unit | -6/Factory | Scanalyzed HERF Cannon | -6/Factory | Hacked Robot Schematics ------------------ None Fabricated ------------ Cld. Aerolev Unit | x1 | -6/Factory Repaired ---------- Lgt. Treads | 58% | -10/Materials Lgt. Cannon | 71% | -10/Materials Arm. Treads | 54% | -9/Materials Cld. Deuterium Engine | 32% | -8/Storage Imp. Sensor Array | 13% | -6/Factory Cmb. Airjet | 35% | -6/Factory Adv. Terrain Scanner | 41% | -6/Factory Cld. Deuterium Engine | 49% | -6/Factory Mak. Axe | 41% | -6/Factory Cld. Deuterium Engine | 53% | -6/Factory Missile Launcher | 50% | -6/Factory Alien Tech Used ----------------- None Achievements -------------- None Challenges ------------ None Game ------ Seed AbsorptionStasisPropulsion Manual? 0 Play Time 02:39:01 Cumulative 116.7 hours Start 2025.07.13 @ 22:38:25 End 2025.07.17 @ 17:01:57 Sessions 3 Manual Loads 0 Difficulty Rogue Special Mode None Game No. 91 Rogue 91 Adventurer 0 Explorer 0 Win Type - Total 2 Types 2/0/0/0/0/0/0/0/0/0 Lore% 51 Gallery% 44 Achievement% 47 Wizard Run 0 Options --------- Layout 2 ASCII 0 Keyboard 1 Movement Numpad Keybinds 0 Fullscreen 2 Font 32/SmallcapsGlow Map View 50x44 Zoom Use 0% Tactical HUD 1 Map Filters NONE Filters NONE Steam 1 RUN: 1e6ff7cb-6ac8-4a8f-91c4-66213a70b789